[Event "1st Chessable Sunway Formentera 2022"]
[Site "Formentera Punta Prima"]
[Date "2022.04.29"]
[Round "1"]
[White "Dukic, Zachary"]
[Black "Gukesh D"]
[Result "0-1"]
[ECO "B12"]
[WhiteElo "2243"]
[BlackElo "2659"]
[Annotator "TA"]
[PlyCount "70"]
[EventDate "2022.05.05"]
[EventType "swiss"]
[EventCountry "ESP"]
[SourceTitle "playchess.com"]
[Source "ChessBase"]
[SourceQuality "1"]
[TimeControl "40/5400+30:1800+30"]

{[%evp 9,70,43,45,33,45,36,54,57,57,50,42,29,36,29,31,25,11,24,34,24,28,0,0,0,0,0,0,0,0,-36,-16,-16,0,-24,-46,-42,-41,-88,-83,-83,-85,-272,-288,-275,-270,-258,-248,-386,-381,-382,-366,-538,-533,-531,-525,-678,-640,-595,-579,-865,-211,-29988,-29989]} 1. e4 {[%emt 0:00:01]} c6 {[%emt 0:01:55]} 2. d4 {[%emt 0:00:06]} d5 {[%emt 0:00:11]} 3. e5 {[%emt 0:00:06]} Bf5 {[%emt 0:00:53]} 4. h4 {[%emt 0:00:06]} Qc8 {[%emt 0:03:57]} 5. h5 {[%emt 0:03:50]} h6 {[%emt 0:00:39]} 6. Nc3 {[%emt 0:00:14] B12: Caro-Kann: Advance Variation.} e6 {[%emt 0:00:18]} 7. Be3 {[%emt 0:00:58]} a6 {[%emt 0:01:53]} 8. g4 {[%emt 0:02:05] White is slightly better.} Bh7 {[%emt 0:00:11] [#]} 9. f4 $146 {[%emt 0:00:10]} ({Predecessor:} 9. Qd2 b5 10. Nge2 Nd7 11. f4 c5 12. Bg2 Nb6 13. b3 b4 14. Nd1 c4 15. c3 {½-½ (128) Drozniak,S (2048)-Piankov,E (2225) Raciborz 2019}) 9... c5 {[%emt 0:01:36]} 10. Nf3 {[%emt 0:00:40]} cxd4 {[%emt 0:05:05]} 11. Nxd4 {[%emt 0:05:56]} Bb4 {[%emt 0:00:53]} 12. Bd3 {[%emt 0:15:00]} Bxc3+ {[%emt 0:05:02]} 13. bxc3 {[%emt 0:01:50]} Qxc3+ {[%emt 0:01:12]} 14. Kf2 {[%emt 0:00:31] And now Qb1 would win.} Be4 {[%emt 0:00:16]} 15. Qb1 {[%emt 0:13:52]} Qc7 {[%emt 0:03:09]} (15... Bxh1 $2 16. Qxb7 $1 Ne7 17. Rxh1 $18 (17. Qxa8 O-O $18)) 16. Bxe4 {[%emt 0:07:06]} dxe4 {[%emt 0:00:02]} 17. c4 {[%emt 0:00:15]} Ne7 {[%emt 0:00:24]} 18. Qxe4 {[%emt 0:03:06]} Nd7 {[%emt 0:00:05]} 19. Kg2 {[%emt 0:10:36]} O-O {[%emt 0:04:31]} 20. Rac1 {[%emt 0:06:07]} Nc5 {[%emt 0:13:15][%cal Bd7c5,Bc5d3,Bd3e5,Be5f3,Bf3g5,Bg5e4][%mdl 32]} 21. Qf3 {[%emt 0:09:13]} f6 {[%emt 0:01:01]} 22. exf6 {[%emt 0:00:19]} Rxf6 {[%emt 0:00:07]} 23. Ne2 {[%emt 0:00:45]} (23. Rb1 $15 {should be considered.}) 23... Nd3 $17 {[%emt 0:00:20]} 24. Rc3 {[%emt 0:03:25]} Ne5 {[%emt 0:00:32] Black is more active.} 25. Qh3 {[%emt 0:03:14] White does not recover from this.} (25. Qe4 $17 {was the only defense.} Nxg4 26. Bd4) 25... Qc6+ $19 {[%emt 0:00:51]} 26. Kh2 {[%emt 0:00:21] Nd4 is the strong threat.} Nf3+ {[%emt 0:13:02]} ({Not} 26... Nxc4 27. Bd4 Rf7 28. Rcc1 $17) 27. Kg3 {[%emt 0:00:08] [#] Strongly threatening Qg2.} Ng5 $1 {[%emt 0:00:05] Pair of Knights!} 28. Nd4 {[%emt 0:00:40] Against Qf3+} (28. Qg2 $142 Ne4+ 29. Kh2 Nxc3 30. Qxc6 Nxc6 31. Nxc3) 28... Qc7 {[%emt 0:00:12]} 29. Qg2 {[%emt 0:01:17] [#]} Nd5 $1 {[%emt 0:01:14]} ({Stronger than} 29... e5 30. fxg5 exd4+ 31. Kh3 dxc3 32. gxf6 $11) 30. Nxe6 {[%emt 0:03:06]} (30. cxd5 $142 Qxc3 31. Qe2 Ne4+ 32. Kg2 exd5 33. Rc1) 30... Rxe6 {[%emt 0:00:30]} ({And not} 30... Ne4+ 31. Qxe4 Nxc3 32. Nxc7 $15) 31. Qxd5 {[%emt 0:00:33]} Rd8 {[%emt 0:00:16]} 32. Qf5 {[%emt 0:02:06]} Ne4+ {[%emt 0:00:08]} 33. Kh3 {[%emt 0:02:24]} Qc6 {[%emt 0:00:43]} 34. Rb3 {[%emt 0:03:15]} Rf6 $2 {[%emt 0:00:51]} (34... Nd2 35. Qxe6+ Qxe6) 35. Qe5 $2 {[%emt 0:00:23] [#]} (35. Qa5 $19 Nf2+ 36. Bxf2 Qxh1+ 37. Kg3) 35... Ng5+ $1 {[%emt 0:00:14][%mdl 576] Discovered Attack.  Weighted Error Value: White=0.67/Black=0.20 (precise)} 0-1

[Event "1st Chessable Sunway Formentera 2022"]
[Site "Formentera Punta Prima"]
[Date "2022.04.29"]
[Round "1"]
[White "Grutter, Tim"]
[Black "Sasikiran, Krishnan"]
[Result "0-1"]
[ECO "B90"]
[WhiteElo "2241"]
[BlackElo "2651"]
[Annotator "TA"]
[PlyCount "132"]
[EventDate "2022.05.05"]
[EventType "swiss"]
[EventCountry "ESP"]
[SourceTitle "playchess.com"]
[Source "ChessBase"]
[SourceQuality "1"]
[TimeControl "40/5400+30:1800+30"]

{[%evp 9,132,22,33,6,15,12,14,0,4,7,0,9,46,0,0,0,6,0,10,-25,-36,-83,-79,-246,-237,-243,-239,-249,-235,-245,-248,-249,-241,-246,-236,-231,-260,-309,-299,-332,-326,-360,-303,-319,-328,-332,-333,-325,-218,-218,-201,-197,-202,-203,-206,-204,-197,-198,-151,-146,-154,-129,-150,-147,-134,-137,-126,-160,-178,-182,-174,-210,-204,-338,-299,-425,-273,-273,-273,-272,-257,-218,-134,-180,-139,-196,-116,-98,0,-318,-318,-429,-324,-310,-224,-999,-935,-755,-608,-29965,-29964,-29962,-29965,-29975,-29976,-29974,-29975,-29975,-29976,-29976,-29977,-29977,-29978,-29979,-29979,-29980,-29981,-29980,-29981,-29980,-29981,-29981,-29982,-29982,-29982]} 1. e4 {[%emt 0:33:35]} c5 {[%emt 1:30:49]} 2. Nf3 {[%emt 0:57:41]} d6 {[%emt 0:00:32]} 3. d4 {[%emt 0:00:35]} cxd4 {[%emt 0:00:29]} 4. Nxd4 {[%emt 0:00:35]} Nf6 {[%emt 0:00:26]} 5. Nc3 {[%emt 0:00:24]} a6 {[%emt 0:00:34]} 6. h4 {[%emt 0:00:26] B90: Sicilian Najdorf: Unusual White 6th moves, 6 Be3 Ng4 and 6 Be3 e5.} e5 {[%emt 0:00:18]} 7. Nb3 {[%emt 0:00:38]} Be6 {[%emt 0:00:28]} 8. f4 {[%emt 0:00:26] The position is equal.} g6 {[%emt 0:00:00] Prevents f5.} 9. Be2 {[%emt 0:00:00]} Nc6 {[%emt 0:00:00]} 10. g4 {[%emt 0:00:00]} exf4 {[%emt 0:00:16] [#]} 11. Bxf4 $146 {[%emt 0:00:00] Hoping for g5.} (11. g5 $5 {[%cal Rg5f6]}) ({Predecessor:} 11. g5 Nd7 12. Bxf4 Nce5 13. Qd2 b5 14. O-O-O b4 15. Nd5 Bxd5 16. Qxd5 Be7 17. Kb1 {1-0 (45) Rakotomaharo,F (2429)-Perez Ponsa,F (2554) Chess.com INT 2021}) 11... d5 {[%emt 0:00:00]} 12. exd5 {[%emt 0:00:00]} Nxd5 {[%emt 0:00:00]} 13. Nxd5 {[%emt 0:00:00]} Bxd5 {[%emt 0:01:50]} 14. Rh3 {[%emt 0:00:00]} Be7 {[%emt 0:00:00]} 15. g5 {[%emt 0:00:00]} (15. Qd2 $15 Bxh4+ 16. Kf1) 15... h6 $17 {[%emt 0:00:00][%cal Rh6g5]} 16. Rd3 $2 {[%emt 0:00:00]} (16. Re3 $17) 16... Nb4 $19 {[%emt 0:00:00][%cal Rh6g5]} 17. Re3 {[%emt 0:00:00]} hxg5 {[%emt 0:00:00]} 18. Bxg5 {[%emt 0:02:02]} Be6 {[%emt 0:03:07]} 19. Qxd8+ {[%emt 0:00:00]} Rxd8 {[%emt 0:00:00]} 20. Bd3 {[%emt 0:01:14] [#]} Rxd3 $1 {[%emt 0:00:00][%mdl 512]} 21. cxd3 {[%emt 0:02:28]} Nc2+ {[%emt 0:00:58]} 22. Kd2 {[%emt 0:00:00]} Nxe3 {[%emt 0:00:00]} ({Stronger than} 22... Nxa1 23. Nxa1 Bb4+ 24. Kd1 $17) 23. Kxe3 {[%emt 0:01:47]} f6 {[%emt 0:02:03]} 24. Bf4 {[%emt 0:00:00]} Rxh4 {[%emt 0:00:00]} 25. Bg3 {[%emt 0:00:00]} Ra4 {[%emt 0:00:00]} 26. Rc1 {[%emt 0:00:00]} Rxa2 {[%emt 0:00:40]} 27. Nd4 {[%emt 0:01:45]} Bd7 {[%emt 0:00:00]} 28. b3 {[%emt 0:00:14]} Bd8 {[%emt 0:00:00] Inhibits Rc7. And now ...Bb6 would win.} 29. Rh1 {[%emt 0:00:00]} Bb6 {[%emt 0:00:00]} 30. Rh8+ {[%emt 0:01:04]} Ke7 {[%emt 0:02:53] White must now prevent ...Bc6.} 31. Rh7+ {[%emt 0:00:19]} Kd8 {[%emt 0:00:00]} 32. Rh8+ {[%emt 0:00:00] [#]} Be8 $1 {[%emt 0:00:40] ...Rg2 is the strong threat.} 33. Rh7 {[%emt 0:00:14]} Bc6 {[%emt 0:00:00]} (33... Ra5 $19 {[%cal Oa5e5] Strongly threatening ...Re5+!} 34. Kd2 Kc8) 34. Bc7+ $17 {[%emt 0:01:48]} Bxc7 {[%emt 0:01:22]} 35. Ne6+ {[%emt 0:00:44]} Kc8 {[%emt 0:00:08]} 36. Rxc7+ {[%emt 0:00:26][%mdl 4096] Endgame KRB-KRN} Kb8 {[%emt 0:00:52]} 37. Rf7 {[%emt 0:00:00]} f5 {[%emt 0:00:00]} 38. Rf6 {[%emt 0:00:00]} Rg2 {[%emt 0:00:07]} 39. Kd4 {[%emt 0:00:24]} Ka7 {[%emt 0:00:41]} 40. b4 {[%emt 0:01:06]} Kb6 {[%emt 0:00:28]} 41. Nf8 {[%emt 0:25:00]} (41. Kc4 $142) 41... g5 $19 {[%emt 0:25:35][%cal Bg6g5,Bg5g4][%mdl 32] aiming for ...f4.} 42. Rxf5 {[%emt 0:04:35]} (42. Ng6 $142) 42... g4 {[%emt 0:05:41]} 43. Ng6 {[%emt 0:01:14]} g3 {[%emt 0:00:00]} 44. Ne5 {[%emt 0:00:09]} Rg1 {[%emt 0:00:00]} 45. Rg5 {[%emt 0:00:00]} Bh1 {[%emt 0:00:00] Threatens to win with ...g2.} 46. Nc4+ {[%emt 0:00:44] [#]} Ka7 $1 {[%emt 0:01:27]} 47. Rg6 {[%emt 0:00:38]} (47. Rg8 $17 {is a better defense.}) 47... Bc6 {[%emt 0:00:00]} ({Black should play} 47... Kb8 $19 48. Rg8+ Kc7) 48. Ne5 $17 {[%emt 0:00:00]} Kb6 {[%emt 0:00:37] Black is more active.} ({Better is} 48... Be8 $17 49. Rg8 Bh5) 49. Nxc6 $2 {[%emt 0:00:18][%mdl 8192] White is now going downhill.} (49. Rg5 $1 $11) 49... bxc6 $11 {[%emt 0:01:53] KR-KR} 50. Ke3 {[%emt 0:02:15]} Kb5 {[%emt 0:00:00]} 51. Kf3 {[%emt 0:00:25]} g2 {[%emt 0:00:00]} 52. Rd6 $2 {[%emt 0:00:47]} (52. Rg4) 52... Rc1 $19 {[%emt 0:00:00]} 53. Kxg2 {[%emt 0:00:58]} Kxb4 {[%emt 0:02:00]} 54. d4 {[%emt 0:00:00]} a5 {[%emt 0:00:00][%cal Ba6a5,Ba5a4,Ba4a3,Ba3a2][%mdl 32] Black mates.} 55. d5 {[%emt 0:00:49]} cxd5 {[%emt 0:00:13]} 56. Rxd5 {[%emt 0:00:37]} a4 {[%emt 0:01:03]} 57. Rd8 {[%emt 0:00:00]} a3 {[%emt 0:00:08]} 58. Rb8+ {[%emt 0:00:36]} Kc3 {[%emt 0:00:53]} 59. Rc8+ {[%emt 0:00:06]} Kb2 {[%emt 0:00:40]} 60. Rb8+ {[%emt 0:01:19]} Ka1 {[%emt 0:00:29]} 61. Kf2 {[%emt 0:00:00]} a2 {[%emt 0:00:35]} 62. Ke2 {[%emt 0:00:35]} Rb1 {[%emt 0:00:31]} 63. Rh8 {[%emt 0:00:25]} Kb2 {[%emt 0:00:20]} 64. Rb8+ {[%emt 0:00:39]} Kc3 {[%emt 0:00:38]} 65. Rc8+ {[%emt 0:00:35]} Kd4 {[%emt 0:00:31]} 66. Rd8+ {[%emt 0:00:11]} Ke5 {[%emt 0:00:06] Weighted Error Value: White=0.52/Black=0.14 (very precise)} 0-1

[Event "1st Chessable Sunway Formentera 2022"]
[Site "Formentera Punta Prima"]
[Date "2022.04.29"]
[Round "1"]
[White "Bernard, Jacques"]
[Black "Santos Ruiz, Miguel"]
[Result "0-1"]
[ECO "B95"]
[WhiteElo "2122"]
[BlackElo "2586"]
[Annotator "TA"]
[PlyCount "80"]
[EventDate "2022.05.05"]
[EventType "swiss"]
[EventCountry "ESP"]
[SourceTitle "playchess.com"]
[Source "ChessBase"]
[SourceQuality "1"]
[TimeControl "40/5400+30:1800+30"]

{[%evp 13,80,-14,-12,-25,0,-22,-16,-85,-83,-121,-108,-91,-57,-77,-32,-137,-131,-117,-101,-94,-92,-116,-79,-121,-57,-68,-70,-62,-24,-107,-92,-102,-121,-99,-106,-150,-156,-156,-152,-160,-146,-162,-163,-165,-157,-145,-140,-174,-176,-177,-147,-258,-190,-218,-208,-232,-217,-231,-216,-211,-53,-307,-283,-448,-416,-483,-499,-489,-436]} 1. e4 {[%emt 0:00:08]} c5 {[%emt 0:00:04]} 2. Nf3 {[%emt 0:00:15]} d6 {[%emt 0:00:05]} 3. d4 {[%emt 0:00:05]} cxd4 {[%emt 0:00:03]} 4. Nxd4 {[%emt 0:00:08]} Nf6 {[%emt 0:00:06]} 5. Nc3 {[%emt 0:00:08]} a6 {[%emt 0:00:04]} 6. Bg5 {[%emt 0:01:00]} e6 {[%emt 0:00:19]} 7. Qd3 {[%emt 0:00:24]} b5 {[%emt 0:00:23][%cal Bb7b5,Bb5b4][%mdl 32] has lost popularity (7...Nbd7).} 8. O-O-O {[%emt 0:03:14] B95: Sicilian Najdorf: 6 Bg5 e6, unusual White 7th moves.} b4 {[%emt 0:01:49]} 9. Nce2 {[%emt 0:02:32][%cal Od4f5]} (9. Bxf6 $5 gxf6 10. Nce2 $11) 9... Nbd7 {[%emt 0:05:05]} 10. Bxf6 {[%emt 0:07:01]} (10. Kb1 $11 {remains equal.}) 10... Nxf6 $17 {[%emt 0:12:24]} ({Of course not} 10... Qxf6 11. f3 $11) 11. f4 {[%emt 0:04:15]} Bb7 {[%emt 0:01:42]} 12. Ng3 {[%emt 0:02:28] [#]} g6 $146 {[%emt 0:12:55] White must now prevent ...Bh6.} ({Predecessor:} 12... Qc7 13. Be2 Rc8 14. Bf3 Qc4 15. Qxc4 Rxc4 16. Be2 Rc7 17. Bf3 Be7 18. Kb1 O-O {0-1 (40) Iskakov,A-Efimenko,Z (2332) Artek 1999}) 13. Kb1 {[%emt 0:07:21]} Bh6 {[%emt 0:09:12]} 14. Qf3 {[%emt 0:05:17]} (14. f5 $1 $15) 14... Qb6 {[%emt 0:03:52]} 15. h4 {[%emt 0:12:47]} O-O-O {[%emt 0:03:32]} 16. Be2 {[%emt 0:21:25]} Kb8 {[%emt 0:01:49]} 17. Rhf1 {[%emt 0:07:00]} Bg7 {[%emt 0:03:10][%cal Of6e4,Bh6g7,Bg7b2,Bb2f6,Bf6h4][%mdl 32]} 18. Nb3 {[%emt 0:12:41]} Nd7 {[%emt 0:12:23]} (18... h5 $17 19. Qd3 Ng4 20. Bxg4 hxg4) 19. Qd3 {[%emt 0:03:01]} Nc5 {[%emt 0:00:34]} 20. Qe3 {[%emt 0:01:24]} Rc8 {[%emt 0:01:26][%cal Og7b2]} 21. Bf3 {[%emt 0:01:53] [#]} (21. e5 $11 {keeps the balance.}) 21... Bxb2 $1 {[%emt 0:01:13][%mdl 512]} 22. Nxc5 {[%emt 0:03:10]} Rxc5 {[%emt 0:00:10]} 23. Qd3 {[%emt 0:00:37]} Bf6 {[%emt 0:02:28] ...d5 is the strong threat. Black is more active. A strong pair of Bishops.} 24. Qxd6+ {[%emt 0:00:47]} Qxd6 {[%emt 0:00:04]} 25. Rxd6 {[%emt 0:00:06]} Bxh4 {[%emt 0:00:27]} 26. Ne2 {[%emt 0:00:13]} Kc7 $36 {[%emt 0:03:38][%mdl 2048] Keeping White busy.} 27. e5 {[%emt 0:01:23]} Be7 {[%emt 0:00:51]} 28. Rd4 {[%emt 0:01:01]} Bxf3 {[%emt 0:00:14]} 29. Rxf3 {[%emt 0:00:07]} Rd8 {[%emt 0:02:43]} 30. Rfd3 {[%emt 0:01:27]} Rxd4 {[%emt 0:00:36]} 31. Rxd4 $19 {[%emt 0:00:08][%mdl 4096] Endgame KRB-KRN} a5 {[%emt 0:02:14][%cal Ba6a5,Ba5a4][%mdl 32]} 32. Kb2 {[%emt 0:01:45]} (32. c3 $17) 32... Kc6 {[%emt 0:00:37]} 33. c4 {[%emt 0:00:23]} a4 {[%emt 0:01:18]} 34. Kc2 {[%emt 0:00:42]} Ra5 {[%emt 0:00:52]} 35. Nc1 {[%emt 0:01:00]} Ra7 {[%emt 0:02:50]} 36. Nd3 {[%emt 0:00:33]} Rd7 $2 {[%emt 0:00:32] [#]} (36... Rb7 $19 {Hoping for ...h5.} 37. Re4 b3+ 38. axb3 Rxb3) 37. Re4 $2 {[%emt 0:00:36][%mdl 8192] White does not recover from this.} (37. Rxd7 $15 Kxd7 38. Nb2) 37... Bc5 {[%emt 0:00:13]} 38. g3 {[%emt 0:00:11]} (38. g4 {might work better.}) 38... h5 {[%emt 0:01:04]} 39. Nb2 {[%emt 0:00:12]} Bf2 {[%emt 0:04:27]} 40. Nd3 {[%emt 0:00:41]} b3+ {[%emt 0:00:00] Weighted Error Value: White=0.42/Black=0.20 (precise)} 0-1

[Event "1st Chessable Sunway Formentera 2022"]
[Site "Formentera Punta Prima"]
[Date "2022.04.29"]
[Round "1"]
[White "Vanduyfhuys, Daria"]
[Black "Narciso Dublan, Marc"]
[Result "1/2-1/2"]
[ECO "E11"]
[WhiteElo "2063"]
[BlackElo "2464"]
[Annotator "TA"]
[PlyCount "78"]
[EventDate "2022.05.05"]
[EventType "swiss"]
[EventCountry "ESP"]
[SourceTitle "playchess.com"]
[Source "ChessBase"]
[SourceQuality "1"]
[TimeControl "40/5400+30:1800+30"]

{[%evp 13,78,6,1,0,16,12,18,19,63,47,52,28,62,58,75,60,72,16,37,10,50,31,58,62,130,128,128,128,131,138,149,72,118,119,161,97,131,116,121,113,112,120,154,147,153,129,129,100,145,145,145,145,145,145,145,144,144,144,145,136,132,0,149,0,138,0,143]} 1. d4 {[%emt 0:00:04]} Nf6 {[%emt 0:00:13]} 2. c4 {[%emt 0:00:07]} e6 {[%emt 0:00:08]} 3. Nf3 {[%emt 0:00:10]} Bb4+ {[%emt 0:00:15]} 4. Bd2 {[%emt 0:00:05]} c5 {[%emt 0:00:16]} 5. Bxb4 {[%emt 0:01:55]} cxb4 {[%emt 0:00:05]} 6. Nbd2 {[%emt 0:02:25]} O-O {[%emt 0:00:26]} 7. e4 {[%emt 0:02:13]} d6 {[%emt 0:00:07]} 8. Qc2 {[%emt 0:06:27] E11: Bogo-Indian.} Nc6 {[%emt 0:06:28]} 9. Bd3 {[%emt 0:08:26]} e5 {[%emt 0:02:07]} 10. d5 {[%emt 0:00:18] [#]} Ne7 $146 {[%emt 0:00:20][%cal Bc6e7,Be7g6,Bg6f4][%mdl 32]} ({Predecessor:} 10... Nb8 11. c5 Bg4 12. cxd6 Bxf3 13. Nxf3 Qxd6 14. Rc1 Nbd7 15. O-O Rfd8 16. Qc7 Qb6 17. Qxb6 axb6 {1-0 (45) Janiashvili,M (1940)-Baskin,R (2390) Chess.com INT 2021}) 11. c5 {[%emt 0:01:15]} Ng6 {[%emt 0:02:29]} 12. cxd6 {[%emt 0:05:30]} Qxd6 {[%emt 0:05:34]} 13. O-O $36 {[%emt 0:02:23][%mdl 2048] White is more active.} Bg4 {[%emt 0:04:59]} 14. Nc4 {[%emt 0:02:27]} Qe7 {[%emt 0:03:27]} 15. Nfd2 {[%emt 0:01:41]} (15. Qd1 $16) 15... Rfc8 {[%emt 0:10:47] [#] ...b5 is the strong threat.} 16. Qb3 {[%emt 0:03:20]} Nf4 {[%emt 0:10:57]} 17. Rfe1 {[%emt 0:02:30]} Nxd3 {[%emt 0:18:55]} 18. Qxd3 {[%emt 0:00:07]} Bh5 {[%emt 0:01:11]} (18... Bd7 $14) 19. a3 $16 {[%emt 0:24:56]} bxa3 {[%emt 0:02:21]} 20. Qxa3 {[%emt 0:00:26]} Qxa3 {[%emt 0:00:44]} 21. Rxa3 {[%emt 0:00:17]} Nd7 {[%emt 0:00:08][%cal Bf6d7,Bd7c5,Bc5a4][%mdl 32]} 22. Rea1 {[%emt 0:00:38]} ({Better is} 22. f3) 22... a6 {[%emt 0:02:17]} (22... Be2 $142 23. Rc3 f6) 23. f3 {[%emt 0:01:07]} f6 {[%emt 0:02:40]} 24. Kf2 {[%emt 0:00:33]} (24. Nd6 $18) 24... b5 {[%emt 0:07:00]} 25. Ne3 {[%emt 0:00:43]} Nc5 {[%emt 0:00:04]} 26. Nf5 {[%emt 0:08:44] Hoping for Ne7+.} Kf8 {[%emt 0:05:17] Against Ne7} 27. Nd6 {[%emt 0:08:31]} Rcb8 {[%emt 0:08:34]} 28. Rc3 {[%emt 0:01:23][%cal Ba3c3,Bc3c2,Bc2a2][%mdl 32]} Na4 {[%emt 0:00:52]} 29. Rc2 {[%emt 0:00:12]} Rd8 {[%emt 0:00:56]} 30. Nf5 {[%emt 0:02:50][%cal Bd6f5,Bf5e3,Be3c2,Bc2b4,Bb4c6][%mdl 32]} Be8 {[%emt 0:01:30] [#]} 31. b3 $1 {[%emt 0:00:25]} Nb6 {[%emt 0:00:02]} 32. Rca2 {[%emt 0:01:35] White is more active.} Bd7 {[%emt 0:00:10]} 33. Ne3 {[%emt 0:00:50]} ({Don't play} 33. Rxa6 $6 Bxf5 34. Rxa8 (34. exf5 Rxa6 35. Rxa6 Nxd5 $11) 34... Nxa8 $11) 33... Bc8 {[%emt 0:00:17]} 34. Nc2 {[%emt 0:00:37]} Rd7 {[%emt 0:02:12]} 35. Nb4 {[%emt 0:00:16]} Rda7 {[%emt 0:00:10]} 36. Nc6 {[%emt 0:03:35]} Rc7 {[%emt 0:00:05]} 37. Nb4 {[%emt 0:00:07]} Rca7 $1 {[%emt 0:00:34]} 38. Nc6 {[%emt 0:01:45]} Rc7 {[%emt 0:00:03]} 39. Nb4 {[%emt 0:01:02]} Rca7 $1 {[%emt 0:00:03] Weighted Error Value: White=0.24 (precise) /Black=0.13 (very precise)} 1/2-1/2

[Event "1st Chessable Sunway Formentera 2022"]
[Site "Formentera Punta Prima"]
[Date "2022.04.29"]
[Round "1"]
[White "Al-Hajiri, Bader"]
[Black "Yankelevich, Lev"]
[Result "0-1"]
[ECO "E21"]
[WhiteElo "2052"]
[BlackElo "2473"]
[Annotator "TA RC"]
[PlyCount "88"]
[EventDate "2022.05.05"]
[EventType "swiss"]
[EventCountry "ESP"]
[SourceTitle "playchess.com"]
[Source "ChessBase"]
[SourceQuality "1"]
[TimeControl "40/5400+30:1800+30"]

{[%evp 14,88,0,-6,0,-12,0,0,0,-24,0,-3,0,0,0,-22,-8,-8,-19,-37,0,-4,47,37,48,45,47,52,45,35,53,39,56,47,41,34,60,47,48,45,28,10,73,67,69,118,119,70,75,71,76,30,27,25,42,-45,-24,-86,-86,-86,-86,-246,-247,-647,-625,-610,-599,-29986,-29987,-29987,-29988,-29988,-29982,-29982,-29983,-6087,-932]} 1. d4 {[%emt 0:00:12]} Nf6 {[%emt 0:00:16]} 2. c4 {[%emt 0:00:13]} e6 {[%emt 0:02:38]} 3. Nc3 {[%emt 0:00:53]} Bb4 {[%emt 0:00:12]} 4. Nf3 {[%emt 0:02:30]} b6 {[%emt 0:00:10]} 5. g3 {[%emt 0:00:39]} Bxc3+ {[%emt 0:02:34]} 6. bxc3 {[%emt 0:00:20]} Bb7 {[%emt 0:01:12]} 7. Bg2 {[%emt 0:00:28]} O-O {[%emt 0:01:27]} 8. O-O {[%emt 0:00:17]} Qc8 {[%emt 0:12:12] E21: Nimzo-Indian: 4 Nf3.} 9. Nd2 {[%emt 0:10:14]} Bxg2 {[%emt 0:01:15]} 10. Kxg2 {[%emt 0:00:09]} Qb7+ {[%emt 0:06:19] [#] The position is equal.} 11. Kg1 $146 {[%emt 0:03:18]} ({Predecessor:} 11. f3 c5 12. Nb3 d6 13. Bg5 Ne8 14. Qd3 h6 15. Be3 Nc6 16. Rad1 f5 17. Rd2 {0-1 (95) Valdes,L (2300)-Nogueiras Santiago,J (2550) Havana 1992}) 11... Re8 {[%emt 0:01:26]} 12. Re1 {[%emt 0:08:56]} e5 {[%emt 0:05:25]} 13. e4 {[%emt 0:00:38]} d6 {[%emt 0:01:44]} 14. Rb1 {[%emt 0:03:25]} Qa6 {[%emt 0:02:58]} 15. Qb3 {[%emt 0:07:49]} Nc6 {[%emt 0:00:46]} 16. Qb5 {[%emt 0:01:11]} Qb7 {[%emt 0:07:49]} 17. d5 {[%emt 0:00:33]} Ne7 {[%emt 0:00:13]} (17... Nd8 $11) 18. c5 $1 $14 {[%emt 0:00:39]} dxc5 {[%emt 0:07:40] [#]} 19. Qxc5 $1 {[%emt 0:05:00][%mdl 64] Pin} c6 {[%emt 0:00:02][%cal Rc6d5]} 20. c4 {[%emt 0:04:17]} Rac8 {[%emt 0:05:18][%cal Rc6d5]} 21. Qb4 {[%emt 0:01:27]} Qd7 {[%emt 0:00:19]} 22. Qb3 {[%emt 0:04:19]} Ng6 {[%emt 0:03:57][%cal Ob6b5]} 23. Nf1 {[%emt 0:01:54]} h5 {[%emt 0:00:51]} 24. h4 {[%emt 0:02:43]} Qh3 {[%emt 0:01:08]} 25. Bg5 {[%emt 0:08:06]} Nh7 {[%emt 0:04:16]} 26. Bd2 {[%emt 0:00:39]} f5 {[%emt 0:02:12]} 27. c5 {[%emt 0:04:26]} cxd5 {[%emt 0:11:50]} (27... f4 $1 $11 {remains equal.}) 28. cxb6 $16 {[%emt 0:00:32]} (28. Qxd5+ $6 Kh8 $18) 28... axb6 {[%emt 0:03:23]} 29. Qxd5+ {[%emt 0:02:35]} (29. exf5 $14 Qxf5 30. Qxd5+ Qe6 31. Qxe6+ Rxe6 32. Be3) 29... Kh8 {[%emt 0:00:03]} 30. exf5 {[%emt 0:00:21]} ({Don't do} 30. Rxb6 $6 Nxh4 31. gxh4 Qg4+ 32. Ng3 f4 33. Bxf4 Qxf4 $14) (30. Qf7 $1 $16 {[%cal Rf7g6]} Nf4 31. gxf4 Qg4+ 32. Ng3 exf4 33. Bxf4 $1 {[%mdl 512]} (33. exf5 Rxe1+ 34. Rxe1 Nf6 $16) (33. Rxb6 $2 fxg3 34. Rg6 gxf2+ 35. Kxf2 Qxh4+ 36. Kg2 Rg8 $19) 33... Qxf4 34. Qxg7+ $3 {[%mdl 512]} (34. Qxf5 Qxh4 35. Rb5 Rc5 $16) (34. exf5 Rxe1+ 35. Rxe1 Nf6 $16) (34. Qxh5 fxe4 35. Qf5 Qxf5 $14) (34. Nxf5 Qg4+ 35. Ng3 Re5 $14) 34... Kxg7 35. Nxh5+ Kg8 36. Nxf4) 30... Nf6 $14 {[%emt 0:00:57]} 31. Qf7 {[%emt 0:06:02]} Qxf5 {[%emt 0:01:44]} 32. Rxb6 {[%emt 0:02:43]} (32. Ne3 $16 Qf3 33. Qxg6) 32... Re7 $11 {[%emt 0:04:11]} 33. Qb3 {[%emt 0:00:30] Black must now prevent Bg5.} ({Don't blunder} 33. Ne3 $2 Qd3 34. Qb3 Qxd2 $19) 33... e4 $1 {[%emt 0:00:41]} 34. Bg5 {[%emt 0:05:19]} ({White should try} 34. Rb5 $14 Ne5 35. Kg2) 34... Ne5 $36 {[%emt 0:03:00][%mdl 2048] Black has the initiative.} 35. Nh2 {[%emt 0:06:13] [#]} (35. Nd2 $1 $11 {keeps the balance.}) 35... Nfg4 $1 $17 {[%emt 0:03:14] Black is more active.} 36. Nxg4 {[%emt 0:00:28] [#]} Nf3+ $1 {[%emt 0:02:44]} 37. Kf1 $2 {[%emt 0:05:00] Loses the game.} (37. Qxf3 $17 exf3 38. Bxe7 Qxg4 39. Rb3) 37... Qxg4 $19 {[%emt 0:00:05] The board is on fire.} 38. Rd1 $2 {[%emt 0:00:22]} (38. Qd5 Qh3+ 39. Ke2) 38... Nxg5 {[%emt 0:00:59]} 39. hxg5 {[%emt 0:00:07]} e3 $1 {[%emt 0:00:03][%mdl 64] ( -> ...e2+). Decoy} 40. fxe3 {[%emt 0:00:00]} Qf3+ {[%emt 0:00:00]} 41. Kg1 {[%emt 0:04:31]} Qxg3+ {[%emt 0:00:14]} 42. Kh1 {[%emt 0:00:11]} Re4 {[%emt 0:00:40][%cal Re4h4]} 43. Rh6+ {[%emt 0:03:37]} gxh6 {[%emt 0:00:06][%cal Re4h4]} 44. Qb2+ {[%emt 0:00:07]} Qe5 {[%emt 0:00:04] Weighted Error Value: White=0.47/Black=0.08 (flawless)} 0-1